bitfinex/quotes_BTCUSD_20250115
["timestamp","ask_amount","ask_price","bid_price","bid_amount"]
[1736940576971,0.00104959,96760.0,96751.0,0.10422692]
[1736940577377,4.959e-05,96760.0,96751.0,0.10422692]
[1736940577578,0.00104959,96760.0,96751.0,0.10422692]
[1736940578206,4.959e-05,96760.0,96751.0,0.10422692]
[1736940578386,0.00204959,96760.0,96751.0,0.10422692]
[1736940578619,4.959e-05,96760.0,96751.0,0.10422692]
[1736940578824,4.959e-05,96760.0,96751.0,0.10822692]
[1736940579004,4.959e-05,96760.0,96752.0,0.12963341]
[1736940579243,4.959e-05,96760.0,96754.0,0.10422692]
[1736940579437,4.959e-05,96760.0,96756.0,0.0822]
[1736940579712,4.959e-05,96760.0,96758.0,0.0822]
[1736940579922,4.959e-05,96760.0,96759.0,0.10422692]
[1736940581092,4.959e-05,96760.0,96759.0,0.10722692]
[1736940581472,0.00104959,96760.0,96759.0,0.10722692]
[1736940581874,4.959e-05,96760.0,96759.0,0.10722692]
[1736940582062,0.00104959,96760.0,96759.0,0.11122692]
[1736940582493,0.00104959,96760.0,96759.0,0.10822692]
[1736940582892,0.00104959,96760.0,96759.0,0.11022692]
[1736940584060,0.00048638,96760.0,96759.0,0.11022692]
[1736940584793,0.00179173,96768.0,96759.0,0.10622692]
[1736940585196,0.001,96760.0,96759.0,0.11022692]
[1736940585891,0.001,96760.0,96759.0,0.10822692]
[1736940586095,0.00179173,96768.0,96759.0,0.10722692]
[1736940586271,0.00279173,96768.0,96759.0,0.11122692]
[1736940586469,0.00279173,96768.0,96759.0,0.10822692]
[1736940586679,0.00179173,96768.0,96759.0,0.10422692]
[1736940587006,0.00179173,96768.0,96759.0,0.10622692]
[1736940587519,0.00179235,96760.0,96759.0,0.10422692]
[1736940587655,0.00179235,96760.0,96759.0,0.10522692]
[1736940588060,0.00279235,96760.0,96759.0,0.11022692]
[1736940588953,0.00279235,96760.0,96759.0,0.10922692]
[1736940589142,0.00279235,96760.0,96759.0,0.11122692]
[1736940592699,0.00279235,96760.0,96759.0,0.11226028]
[1736940593059,0.00279235,96760.0,96759.0,0.11122692]
[1736940599356,0.00279235,96760.0,96759.0,0.11208042]
[1736940605265,0.00279235,96760.0,96759.0,1.10951376]
[1736940605467,0.00279235,96760.0,96759.0,1.15678042]
[1736940606062,0.00279235,96760.0,96759.0,1.15478042]
[1736940606314,0.00179235,96760.0,96759.0,1.14978042]
[1736940606517,0.00179235,96760.0,96759.0,1.46283042]
[1736940606938,0.00279235,96760.0,96759.0,1.46683042]
[1736940608150,0.00179235,96760.0,96759.0,1.46283042]
[1736940608558,0.00279235,96760.0,96759.0,1.46883042]
[1736940608764,0.00179235,96760.0,96759.0,1.45983042]
[1736940608975,0.00179235,96760.0,96759.0,1.46383042]
[1736940609174,0.00279235,96760.0,96759.0,1.47283042]
[1736940609519,0.00279235,96760.0,96759.0,1.46883042]
[1736940609720,0.00279235,96760.0,96759.0,1.47483042]
[1736940609931,0.00379235,96760.0,96759.0,1.47483042]
[1736940611865,0.00379235,96760.0,96759.0,1.51295887]
[1736940612370,0.00179173,96768.0,96767.0,0.5001]
[1736940612591,0.00179173,96768.0,96767.0,0.91434692]
[1736940613338,0.22120564,96830.0,96767.0,0.91434692]
[1736940613339,4e-05,96800.0,96790.0,0.9216]
[1736940613585,4e-05,96800.0,96790.0,1.03170692]
[1736940613826,0.00193078,96791.0,96790.0,2.84165692]
[1736940614042,0.00193078,96791.0,96790.0,3.91076592]
[1736940614249,0.00193078,96791.0,96790.0,2.74165692]
[1736940614455,0.00193078,96791.0,96790.0,2.84165692]
[1736940614963,0.00193078,96791.0,96790.0,2.73177692]
[1736940615181,0.00193078,96791.0,96790.0,2.83765692]
[1736940615394,0.00193078,96791.0,96790.0,1.33765692]
[1736940615616,0.00283913,96791.0,96790.0,1.35688409]
[1736940615824,0.00183913,96791.0,96790.0,1.48680828]
[1736940616224,0.00283913,96791.0,96790.0,1.49980828]
[1736940616419,0.00283913,96791.0,96790.0,1.49080828]
[1736940616619,0.00283913,96791.0,96790.0,1.48680828]
[1736940617018,0.00283913,96791.0,96790.0,1.35288409]
[1736940617796,0.00383913,96791.0,96790.0,1.36188409]
[1736940618256,0.00183913,96791.0,96790.0,1.35288409]
[1736940618408,0.00183913,96791.0,96790.0,1.34788409]
[1736940618622,0.00183913,96791.0,96790.0,1.35188409]
[1736940618821,0.00183913,96791.0,96790.0,1.36088409]
[1736940619029,0.00042447,96797.0,96796.0,0.1]
[1736940619228,0.0005423,96797.0,96796.0,0.6651898]
[1736940619548,0.0005423,96797.0,96796.0,0.66415692]
[1736940619753,0.0005423,96797.0,96796.0,0.56415692]
[1736940619932,0.0005423,96797.0,96796.0,0.66415692]
[1736940620372,0.0005423,96797.0,96796.0,0.56415692]
[1736940620536,0.0005423,96797.0,96796.0,0.75669444]
[1736940620736,0.0005423,96797.0,96796.0,0.75969444]
[1736940620948,0.0005423,96797.0,96796.0,0.66557444]
[1736940621155,0.00136126,96809.0,96796.0,0.67457444]
[1736940621354,0.00185712,96809.0,96798.0,0.15]
[1736940621590,0.0771,96808.0,96799.0,0.10422692]
[1736940621812,0.0771,96808.0,96799.0,0.41414692]
[1736940623209,0.046,96807.0,96799.0,0.41414692]
[1736940623414,0.0771,96806.0,96799.0,0.41414692]
[1736940623627,0.0771,96806.0,96799.0,0.41714692]
[1736940624513,0.0771,96806.0,96799.0,0.42514692]
[1736940624713,0.0771,96806.0,96799.0,0.41714692]
[1736940624917,0.00185712,96809.0,96799.0,0.41714692]
[1736940624918,0.046,96805.0,96799.0,0.41714692]
[1736940625125,0.046,96803.0,96799.0,0.41514692]
[1736940625537,0.046,96803.0,96800.0,0.10422692]
[1736940625839,0.046,96803.0,96800.0,0.41414692]
[1736940628421,0.0771,96804.0,96801.0,0.10422692]
[1736940628601,0.0771,96804.0,96801.0,0.41413692]
[1736940629474,0.001,96803.0,96801.0,0.41413692]
[1736940630301,0.0771,96804.0,96801.0,0.41413692]
[1736940631282,0.04265113,96804.0,96801.0,0.41413692]
[1736940631682,0.04265113,96804.0,96801.0,0.42313692]
[1736940631683,0.04365113,96804.0,96801.0,0.42313692]
[1736940632573,0.04365113,96804.0,96802.0,0.00103295]
[1736940632781,0.001,96804.0,96803.0,0.10422692]
[1736940633132,0.001,96804.0,96803.0,0.41516981]
[1736940633476,0.001,96804.0,96803.0,0.41413692]
[1736940633662,0.00185712,96809.0,96803.0,0.41413692]
[1736940634283,0.08419173,96804.0,96803.0,0.41413692]
[1736940635071,0.08519173,96804.0,96803.0,0.41413692]
[1736940635649,0.08619173,96804.0,96803.0,0.42313692]
[1736940636938,0.00379173,96804.0,96803.0,0.67313692]
[1736940637141,0.00379173,96804.0,96803.0,1.34073692]
[1736940637321,0.00379173,96804.0,96803.0,1.22361692]
[1736940637914,0.00379173,96804.0,96803.0,1.22161692]
[1736940638340,0.00379173,96804.0,96803.0,1.22361692]
[1736940638508,0.00179173,96804.0,96803.0,1.21661692]
[1736940638712,0.00179173,96804.0,96803.0,1.21461692]
[1736940639141,0.00179173,96804.0,96803.0,1.22461692]
[1736940639343,0.00179173,96804.0,96803.0,1.23499794]
[1736940639556,0.00179173,96804.0,96803.0,1.22499794]
[1736940639935,0.00179173,96804.0,96803.0,1.23399794]
[1736940640989,0.00179173,96804.0,96803.0,1.23799794]
[1736940641864,0.0016674,96804.0,96803.0,1.23799794]
[1736940642267,0.0016674,96804.0,96803.0,1.33053546]
[1736940642872,0.0016674,96804.0,96803.0,1.45353546]
[1736940643069,0.0016674,96804.0,96803.0,1.36099794]
[1736940643630,0.0016674,96804.0,96803.0,1.26099794]
[1736940643834,0.0016674,96804.0,96803.0,1.36099794]
[1736940644142,0.0016674,96804.0,96803.0,1.35699794]
[1736940644359,0.0016674,96804.0,96803.0,1.36199794]
[1736940644920,0.0016674,96804.0,96803.0,1.23899794]
[1736940645127,0.0016674,96804.0,96803.0,1.23311794]
[1736940645329,0.0016674,96804.0,96803.0,1.12999794]
[1736940645521,0.0016674,96804.0,96803.0,1.12499794]
[1736940645786,0.0016674,96804.0,96803.0,1.13399794]
[1736940645944,0.0016674,96804.0,96803.0,0.76367977]
[1736940645945,0.0490674,96804.0,96803.0,0.76367977]
[1736940646124,0.0490674,96804.0,96803.0,0.60329875]
[1736940646329,0.0490674,96804.0,96803.0,0.61229875]
[1736940646786,0.0490674,96804.0,96803.0,0.42713692]
[1736940647168,0.0490674,96804.0,96803.0,0.41413692]
[1736940647583,0.0490674,96804.0,96803.0,0.41813692]
[1736940647979,0.0490674,96804.0,96803.0,0.41413692]
[1736940648380,0.0490674,96804.0,96803.0,0.41813692]
[1736940648602,0.0490674,96804.0,96803.0,0.42713692]
[1736940651669,0.0490674,96804.0,96803.0,0.42313692]
[1736940651920,0.0490674,96804.0,96803.0,0.41613692]
[1736940652062,0.1298674,96804.0,96803.0,0.31191]
[1736940652254,0.0598404,96804.0,96803.0,0.31291]
[1736940653044,0.0598404,96804.0,96803.0,0.31191]
[1736940653518,0.0598404,96804.0,96803.0,0.30991]
[1736940653695,0.0598404,96804.0,96803.0,0.31091]
[1736940655383,0.1052404,96804.0,96803.0,0.31091]
[1736940657601,0.1062404,96804.0,96803.0,0.3117631]
[1736940657797,0.10803191,96804.0,96803.0,0.3117631]
[1736940659106,0.10803191,96804.0,96803.0,0.3107631]
[1736940659910,0.10703191,96804.0,96803.0,0.3107631]
[1736940660327,0.10703191,96804.0,96803.0,0.3117631]
[1736940660530,1.12758491,96804.0,96803.0,0.3117631]
[1736940661253,1.12858491,96804.0,96803.0,0.3117631]
[1736940661668,1.12858491,96804.0,96803.0,0.3107631]
[1736940661801,1.12958491,96804.0,96803.0,0.3107631]
[1736940667617,1.12858491,96804.0,96803.0,0.3107631]
[1736940667762,1.12758491,96804.0,96803.0,0.3107631]
[1736940668158,1.12758491,96804.0,96803.0,0.3117631]
[1736940675077,1.02234451,96804.0,96803.0,0.41599002]
[1736940676248,1.02234451,96804.0,96803.0,0.42721623]
[1736940676730,1.02234451,96804.0,96803.0,0.42621623]
[1736940677230,1.02234451,96804.0,96803.0,0.52302191]
[1736940677594,1.02234451,96804.0,96803.0,0.5127957]
[1736940677797,1.09894451,96804.0,96803.0,0.5127957]
[1736940678008,1.09894451,96804.0,96803.0,0.41999002]
[1736940679251,1.09757951,96804.0,96803.0,0.41999002]
[1736940681077,1.02097951,96804.0,96803.0,0.41999002]
[1736940683988,1.01703961,96804.0,96803.0,1.27399002]
[1736940684213,1.01703961,96804.0,96803.0,1.39699002]
[1736940684632,1.01703961,96804.0,96803.0,1.42924391]
[1736940684836,1.01703961,96804.0,96803.0,1.42824391]
[1736940685480,1.01703961,96804.0,96803.0,1.42924391]
[1736940685695,1.01703961,96804.0,96803.0,1.42524391]
[1736940685888,1.01703961,96804.0,96803.0,1.42424391]
[1736940686187,1.01703961,96804.0,96803.0,1.42924391]
[1736940686559,1.01703961,96804.0,96803.0,1.43824391]
[1736940687202,1.01703961,96804.0,96803.0,1.40599002]
[1736940690778,1.01703961,96804.0,96803.0,1.30599002]
[1736940690964,1.01703961,96804.0,96803.0,1.35247002]
[1736940692218,1.01883112,96804.0,96803.0,1.35247002]
[1736940693337,1.01883112,96804.0,96803.0,0.86727002]
[1736940693542,1.01883112,96804.0,96803.0,1.41187002]
[1736940693916,1.01883112,96804.0,96803.0,2.91187002]
[1736940694169,0.99452844,96804.0,96803.0,3.63390187]
[1736940694361,0.98452844,96804.0,96803.0,3.61990187]
[1736940694601,0.98452844,96804.0,96803.0,3.63490187]
[1736940695037,0.98452844,96804.0,96803.0,2.92934787]
[1736940695472,0.98452844,96804.0,96803.0,2.93534787]
[1736940695928,0.98452844,96804.0,96803.0,3.04434787]
[1736940696368,0.98452844,96804.0,96803.0,2.94434787]
[1736940696609,0.98452844,96804.0,96803.0,1.53534787]
[1736940696849,0.98452844,96804.0,96803.0,1.44434787]
[1736940697091,0.98452844,96804.0,96803.0,2.90460287]
[1736940697282,0.98452844,96804.0,96803.0,2.99860287]
[1736940697483,0.98452844,96804.0,96803.0,1.49860287]
[1736940697711,0.98452844,96804.0,96803.0,1.50460287]
[1736940698081,0.94737932,96804.0,96803.0,1.50460287]
[1736940699019,0.93699802,96804.0,96803.0,1.50460287]
[1736940699226,0.93699802,96804.0,96803.0,1.40460287]
[1736940699591,0.93699802,96804.0,96803.0,1.94920287]
[1736940699779,0.93699802,96804.0,96803.0,2.04920287]
[1736940700522,0.93699802,96804.0,96803.0,2.01703902]
[1736940700930,0.93699802,96804.0,96803.0,1.90803902]
[1736940701139,0.88648802,96804.0,96803.0,1.90803902]
[1736940702085,0.88648802,96804.0,96803.0,1.94014864]
[1736940702265,0.88648802,96804.0,96803.0,3.40803902]
[1736940702459,0.87452802,96804.0,96803.0,3.40803902]
[1736940702866,0.87452802,96804.0,96803.0,3.51703902]
[1736940703339,0.85349802,96804.0,96803.0,3.51703902]
[1736940703549,0.85349802,96804.0,96803.0,3.05387002]
[1736940703758,0.85549802,96804.0,96803.0,6.70198602]
[1736940704010,0.85549802,96804.0,96803.0,6.70298602]
[1736940704174,0.85349802,96804.0,96803.0,6.70298602]
[1736940704722,0.85749802,96804.0,96803.0,5.69790002]
[1736940704903,0.85749802,96804.0,96803.0,1.06159002]
[1736940705110,0.85349802,96804.0,96803.0,1.06655002]
[1736940705302,0.85349802,96804.0,96803.0,1.21755002]
[1736940705506,0.85749802,96804.0,96803.0,1.16655002]
[1736940705919,0.85749802,96804.0,96803.0,1.21755002]
[1736940706128,0.85749802,96804.0,96803.0,1.21655002]
[1736940706343,0.85749802,96804.0,96803.0,1.23955002]
[1736940706510,0.85749802,96804.0,96803.0,1.47824891]
[1736940706715,0.85349802,96804.0,96803.0,1.47724891]
[1736940706922,0.85749802,96804.0,96803.0,1.37724891]
[1736940707121,0.85749802,96804.0,96803.0,1.47724891]
[1736940707469,0.85349802,96804.0,96803.0,1.47724891]
[1736940707799,0.85349802,96804.0,96803.0,1.49124891]
[1736940708034,0.85349802,96804.0,96803.0,1.35255002]
[1736940709213,0.85349802,96804.0,96803.0,2.38741602]
[1736940710076,0.85349802,96804.0,96803.0,3.14401102]
[1736940710228,0.85349802,96804.0,96803.0,3.08551102]
[1736940710424,0.85549802,96804.0,96803.0,2.85455002]
[1736940711136,0.85349802,96804.0,96803.0,2.95314302]
[1736940711488,0.85649802,96804.0,96803.0,2.95314302]
[1736940712828,0.85649802,96804.0,96803.0,1.33855002]
[1736940712829,0.85349802,96804.0,96803.0,1.33855002]
[1736940713170,0.86149802,96804.0,96803.0,1.34655002]
[1736940713587,0.86149802,96804.0,96803.0,2.33705425]
[1736940713820,0.86249802,96804.0,96803.0,2.34605425]
[1736940714617,0.86249802,96804.0,96803.0,2.23581625]
[1736940715776,0.86249802,96804.0,96803.0,1.38673425]
[1736940716161,0.86249802,96804.0,96803.0,2.29852025]
[1736940716570,0.86249802,96804.0,96803.0,2.19665725]
[1736940716789,0.86249802,96804.0,96803.0,1.56662625]
[1736940717186,0.86249802,96804.0,96803.0,1.46926725]
[1736940717407,0.94539802,96804.0,96803.0,1.23155002]
[1736940718296,0.94539802,96804.0,96803.0,1.12559002]
[1736940718722,0.94539802,96804.0,96803.0,1.41677023]
[1736940718876,0.94539802,96804.0,96803.0,1.26677023]
[1736940719053,0.94539802,96804.0,96803.0,1.18977023]
[1736940719266,0.86249802,96804.0,96803.0,1.43977023]
[1736940719510,0.86249802,96804.0,96803.0,1.25455002]
[1736940724365,0.86249802,96804.0,96803.0,1.15455002]
[1736940724770,0.86249802,96804.0,96803.0,1.17540333]
[1736940724979,0.94199802,96804.0,96803.0,1.17540333]
[1736940725645,0.94199802,96804.0,96803.0,1.15455002]
[1736940732540,0.94199802,96804.0,96803.0,1.15459002]
[1736940733232,0.94199802,96804.0,96803.0,0.58699002]
[1736940733695,0.94199802,96804.0,96803.0,0.43099002]
[1736940735256,0.94199802,96804.0,96803.0,0.43299002]
[1736940735489,0.93399802,96804.0,96803.0,0.42099002]
[1736940735960,0.93299802,96804.0,96803.0,0.41499002]
[1736940736193,0.93299802,96804.0,96803.0,0.41899002]
[1736940736445,0.93299802,96804.0,96803.0,0.55822323]
[1736940737415,0.97939802,96804.0,96803.0,0.55822323]
[1736940738416,0.97939802,96804.0,96803.0,0.56622323]
[1736940738417,0.98039802,96804.0,96803.0,0.56622323]
[1736940738655,0.98039802,96804.0,96803.0,0.3147631]
[1736940738896,0.98039802,96804.0,96803.0,0.2356631]
[1736940739083,0.98039802,96804.0,96803.0,0.2386631]
[1736940739293,0.97939802,96804.0,96803.0,0.2356631]
[1736940739982,0.97939802,96804.0,96803.0,0.2386631]
[1736940740346,0.97939802,96804.0,96803.0,0.2356631]
[1736940740549,0.97939802,96804.0,96803.0,0.33989002]
[1736940740820,0.97939802,96804.0,96803.0,0.34089002]
[1736940741292,0.97939802,96804.0,96803.0,0.33789002]
[1736940742017,0.97939802,96804.0,96803.0,0.33689002]
[1736940742236,0.97939802,96804.0,96803.0,0.34089002]
[1736940742705,0.97939802,96804.0,96803.0,0.2356631]
[1736940743174,0.97939802,96804.0,96803.0,0.2366631]
[1736940743434,0.97939802,96804.0,96803.0,0.1866631]
[1736940743894,0.97939802,96804.0,96803.0,0.1856631]
[1736940744195,0.97939802,96804.0,96803.0,0.1826631]
[1736940744441,0.97939802,96804.0,96803.0,0.1856631]
[1736940744724,0.97939802,96804.0,96803.0,0.1826631]
[1736940744964,0.97939802,96804.0,96803.0,0.1856631]
[1736940745156,0.97939802,96804.0,96803.0,0.1826631]
[1736940745634,0.98039802,96804.0,96803.0,0.1826631]
[1736940745864,0.98039802,96804.0,96803.0,0.1836631]
[1736940746340,0.98039802,96804.0,96803.0,0.1826631]
[1736940746827,0.98139802,96804.0,96803.0,0.1826631]
[1736940747269,0.98039802,96804.0,96803.0,0.1826631]
[1736940747909,0.97939802,96804.0,96803.0,0.1826631]
[1736940748052,0.98039802,96804.0,96803.0,0.1826631]
[1736940748279,0.97939802,96804.0,96803.0,0.1826631]
[1736940748479,0.98039802,96804.0,96803.0,0.1826631]
[1736940748717,0.98139802,96804.0,96803.0,0.0545631]
[1736940749128,0.89009802,96804.0,96803.0,0.0545631]
[1736940749335,0.89109802,96804.0,96803.0,0.0545631]
[1736940749551,0.89009802,96804.0,96803.0,0.0545631]
[1736940749975,0.88909802,96804.0,96803.0,0.0545631]
[1736940750142,0.89009802,96804.0,96803.0,0.0545631]
[1736940751075,0.89109802,96804.0,96803.0,0.0545631]
[1736940751253,0.89009802,96804.0,96803.0,0.0545631]
[1736940751477,0.89109802,96804.0,96803.0,0.0545631]
[1736940751966,0.89009802,96804.0,96803.0,0.0545631]
[1736940752312,0.89109802,96804.0,96803.0,0.0545631]
[1736940753709,0.89109802,96804.0,96790.0,0.0008532]
[1736940753710,0.25,96792.0,96790.0,0.0008532]
[1736940753904,0.57892692,96791.0,96790.0,0.0008532]
[1736940754109,0.1247,96769.0,96759.0,0.0008535]
[1736940754220,0.0784,96768.0,96759.0,0.0008535]
[1736940755595,0.0784,96768.0,96759.0,0.00097133]
[1736940757901,0.1,96768.0,96759.0,0.00097133]
[1736940758111,0.0795,96767.0,96759.0,0.00097133]
[1736940758849,0.104,96768.0,96759.0,0.00097133]
[1736940758850,0.0795,96765.0,96759.0,0.00097133]
[1736940759053,0.126,96760.0,96759.0,0.00097133]
[1736940759252,0.50922692,96760.0,96759.0,0.00097133]
[1736940761088,0.50922692,96760.0,96741.0,0.0008532]
[1736940761089,0.126,96750.0,96741.0,0.0008532]
[1736940761315,0.0795,96749.0,96741.0,0.00099163]
[1736940761712,0.0795,96742.0,96741.0,0.00099163]
[1736940763258,0.0795,96742.0,96741.0,0.00199163]
[1736940763719,0.09971895,96742.0,96741.0,0.00199163]
[1736940764291,0.09971895,96742.0,96741.0,0.00399163]
[1736940764640,0.09971895,96742.0,96741.0,0.00199163]
[1736940765193,0.09971895,96742.0,96741.0,0.00099163]
[1736940768936,0.10471895,96742.0,96741.0,0.00099163]
[1736940773055,0.0845,96742.0,96741.0,0.00099163]
[1736940777527,0.005,96742.0,96741.0,0.00099163]
[1736940777773,0.005,96742.0,96741.0,0.10521855]
[1736940778215,0.005,96742.0,96741.0,0.00099163]
[1736940778852,0.005,96742.0,96741.0,0.00199163]
[1736940779061,0.005,96742.0,96741.0,0.00399163]
[1736940779271,0.005,96742.0,96741.0,0.00199163]
[1736940779470,0.005,96742.0,96741.0,0.00499163]
[1736940779592,0.005,96742.0,96741.0,0.00599163]
[1736940779810,0.005,96742.0,96741.0,0.00199163]
[1736940780041,0.005,96742.0,96741.0,0.00099163]
[1736940781020,0.005,96742.0,96741.0,0.00499163]
[1736940781463,0.005,96742.0,96741.0,0.00199163]
[1736940782283,0.005,96742.0,96741.0,0.00099163]
[1736940783862,0.00487561,96742.0,96741.0,0.00099163]
[1736940788318,0.0241403,96742.0,96741.0,0.00099163]
[1736940788487,0.00487561,96742.0,96741.0,0.00099163]
[1736940789056,0.35910253,96742.0,96741.0,0.00099163]
[1736940789267,0.38210253,96742.0,96741.0,0.00099163]
[1736940789472,0.45970253,96742.0,96741.0,0.00099163]
[1736940791473,0.51030253,96742.0,96741.0,0.00099163]
[1736940791678,0.57234991,96742.0,96741.0,0.00099163]
[1736940793020,0.58034991,96742.0,96741.0,0.00099163]
[1736940793439,0.57834991,96742.0,96741.0,0.00099163]
[1736940793651,0.38930253,96742.0,96741.0,0.00099163]
[1736940794008,0.38730253,96742.0,96741.0,0.00099163]
[1736940794220,0.33670253,96742.0,96741.0,0.00099163]
[1736940794453,0.15,96741.0,96713.0,0.06685111]
[1736940794617,0.15,96741.0,96713.0,0.0669007]
[1736940794618,0.25422692,96741.0,96713.0,0.0669007]
[1736940794832,0.15,96739.0,96713.0,0.0669007]
[1736940795883,0.12318142,96730.0,96713.0,4.959e-05]
[1736940796662,0.02120519,96728.0,96713.0,4.959e-05]
[1736940797716,0.1,96734.0,96713.0,4.959e-05]
[1736940797923,0.20422692,96734.0,96713.0,4.959e-05]
[1736940798511,0.02032265,96730.0,96713.0,4.959e-05]
[1736940798831,0.15,96739.0,96713.0,4.959e-05]
[1736940799045,0.15,96737.0,96713.0,4.959e-05]
[1736940799293,0.004,96734.0,96713.0,4.959e-05]
[1736940799842,0.12318142,96730.0,96713.0,4.959e-05]
[1736940800325,0.32740834,96730.0,96713.0,4.959e-05]
[1736940800739,0.53416934,96730.0,96713.0,4.959e-05]
[1736940800955,0.32940834,96730.0,96713.0,4.959e-05]
[1736940801177,0.206782,96721.0,96713.0,4.959e-05]
[1736940801577,0.413564,96721.0,96713.0,4.959e-05]
[1736940801837,0.0413564,96721.0,96713.0,4.959e-05]
[1736940802055,0.206795,96714.0,96713.0,4.959e-05]
[1736940803327,0.22783857,96714.0,96713.0,4.959e-05]
[1736940804905,0.206795,96714.0,96713.0,4.959e-05]
[1736940805128,0.206791,96716.0,96713.0,4.959e-05]
[1736940805378,0.206782,96720.0,96713.0,4.959e-05]
[1736940805379,0.003,96714.0,96713.0,4.959e-05]
[1736940806115,0.004,96714.0,96713.0,4.959e-05]
[1736940806959,0.001,96714.0,96713.0,4.959e-05]
[1736940807435,0.0801,96714.0,96713.0,0.00090389]
[1736940807811,0.0831,96714.0,96713.0,0.00090389]
[1736940808241,0.28732692,96714.0,96713.0,0.00090389]
[1736940809804,0.18732692,96714.0,96713.0,0.00090389]
[1736940810013,0.004,96714.0,96713.0,0.00090389]
[1736940812848,0.012949,96714.0,96713.0,0.00090389]
[1736940813760,0.162949,96714.0,96713.0,0.00090389]
[1736940814509,0.185949,96714.0,96713.0,0.00090389]
[1736940814923,0.6096382,96714.0,96713.0,0.00090389]
[1736940815369,0.7096382,96714.0,96713.0,0.00090389]
[1736940815716,0.7086382,96714.0,96713.0,0.00090389]
[1736940816175,0.7116382,96714.0,96713.0,0.00090389]
[1736940816378,0.7086382,96714.0,96713.0,0.00090389]
[1736940816783,0.7156382,96714.0,96713.0,0.00190389]
[1736940817545,0.01,96714.0,96713.0,0.00190389]
[1736940817917,0.01895,96714.0,96713.0,0.00190389]
[1736940819527,0.206838,96694.0,96693.0,0.00041337]
[1736940819708,0.206838,96694.0,96693.0,0.00090949]
[1736940820501,0.229838,96694.0,96693.0,0.00090949]
[1736940820688,0.229838,96694.0,96693.0,0.00190949]
[1736940826492,0.229665,96694.0,96693.0,0.00190949]
[1736940828363,0.206853,96687.0,96677.0,0.02196229]
[1736940828575,0.023,96686.0,96678.0,0.13736736]
[1736940828996,0.023,96684.0,96678.0,0.13736736]
[1736940830288,0.023,96682.0,96678.0,0.13736736]
[1736940830475,0.023,96682.0,96678.0,0.14136736]
[1736940830708,0.023,96682.0,96679.0,0.02650371]
[1736940830916,0.023,96682.0,96677.0,0.02296229]
[1736940830917,0.023,96680.0,96677.0,0.02296229]
[1736940831087,0.023,96680.0,96678.0,0.005]
[1736940831697,0.023,96680.0,96678.0,0.007]
[1736940831925,0.023,96680.0,96678.0,0.00698791]
[1736940832131,0.023,96680.0,96678.0,0.00498791]
[1736940832310,0.023,96680.0,96678.0,0.0008545]
[1736940832512,0.023,96680.0,96678.0,0.03405423]
[1736940832713,0.023,96680.0,96678.0,0.0088545]
[1736940832918,0.023,96680.0,96678.0,0.0028545]
[1736940833326,0.024,96680.0,96678.0,0.0088545]
[1736940835030,0.001,96680.0,96678.0,0.0088545]
[1736940835991,0.001,96680.0,96678.0,0.11308142]
[1736940836230,0.001,96680.0,96679.0,0.05192231]
[1736940836919,0.001,96680.0,96679.0,0.04692231]
[1736940837069,0.023,96688.0,96679.0,0.04692231]
[1736940837278,0.023,96688.0,96679.0,0.05292231]
[1736940837521,0.001,96680.0,96679.0,0.05292231]
[1736940837708,0.001,96680.0,96679.0,0.05492231]
[1736940838257,0.001,96680.0,96679.0,0.05292231]
[1736940838422,0.001,96680.0,96679.0,0.05392231]
[1736940838622,0.023,96688.0,96679.0,0.04792231]
[1736940838825,0.02224166,96688.0,96680.0,0.03973997]
[1736940839514,0.206853,96687.0,96680.0,0.03973997]
[1736940839674,0.206849,96689.0,96680.0,0.03973997]
[1736940840212,0.206849,96689.0,96680.0,0.04273997]
[1736940840416,0.206849,96689.0,96680.0,0.03973997]
[1736940840567,0.206849,96689.0,96681.0,0.04692231]
[1736940841275,0.023,96688.0,96681.0,0.04692231]
[1736940842006,0.023,96691.0,96682.0,0.10422692]
[1736940842233,0.001,96689.0,96688.0,0.206848]
[1736940842675,0.023,96693.0,96688.0,0.206848]
[1736940842886,0.023,96693.0,96689.0,0.03973997]
[1736940843709,0.023,96693.0,96690.0,0.31107292]
[1736940843912,0.00228989,96694.0,96690.0,0.61791892]
[1736940844540,0.023,96693.0,96690.0,0.61791892]
[1736940845188,0.024,96693.0,96690.0,0.61791892]
[1736940845430,0.024,96693.0,96692.0,0.206842]
[1736940845675,0.023,96693.0,96692.0,0.31106892]
[1736940845934,0.023,96693.0,96692.0,0.36056892]
[1736940846202,0.023,96693.0,96692.0,0.46056892]
[1736940847183,0.00228989,96694.0,96693.0,0.1]
[1736940847374,0.00228989,96694.0,96693.0,0.20526105]
[1736940847585,0.00228989,96694.0,96693.0,0.28486105]
[1736940847826,0.00228989,96694.0,96693.0,0.28382692]
[1736940848711,0.00228989,96694.0,96693.0,0.29282692]
[1736940848933,0.00328989,96694.0,96693.0,0.29282692]
[1736940849352,0.00328989,96694.0,96693.0,0.29682692]
[1736940853357,0.00328989,96694.0,96693.0,0.44682692]
[1736940854206,0.00328989,96694.0,96693.0,0.75708692]
[1736940854875,0.00328989,96694.0,96693.0,1.35118692]
[1736940855292,0.00179403,96714.0,96713.0,0.456797]
[1736940855514,0.00179403,96714.0,96713.0,1.0667504]
[1736940856745,0.00179403,96714.0,96713.0,1.6113504]
[1736940857738,0.00179403,96714.0,96713.0,1.6143504]
[1736940858331,0.00179403,96714.0,96713.0,1.6223504]
[1736940858474,0.00179403,96714.0,96713.0,1.6193504]
[1736940858669,0.00179403,96714.0,96713.0,1.62692882]
[1736940858890,0.00179403,96714.0,96713.0,1.73592882]
[1736940859691,0.00179319,96759.0,96738.0,0.585243]
[1736940859901,0.00179319,96759.0,96738.0,1.0198924]
[1736940861009,0.00179319,96759.0,96738.0,1.0208924]
[1736940861538,0.00179319,96759.0,96738.0,1.5654924]
[1736940861753,0.00179319,96759.0,96738.0,1.5704924]
[1736940861958,0.00179319,96759.0,96738.0,1.5644924]
[1736940862383,0.00179319,96759.0,96738.0,1.5714924]
[1736940862592,0.00179319,96759.0,96738.0,1.58575538]
[1736940863004,0.00179319,96759.0,96738.0,1.59475538]
[1736940863637,0.00179319,96759.0,96738.0,1.59275538]
[1736940863878,0.00179319,96759.0,96738.0,1.6070194]
[1736940869720,0.05787028,96771.0,96766.0,0.206683]
[1736940869943,0.05787028,96771.0,96767.0,0.0206683]
[1736940870138,0.05787028,96771.0,96768.0,0.206679]
[1736940870348,0.05787028,96771.0,96767.0,0.0206683]
[1736940870764,0.05787028,96771.0,96768.0,0.206679]
[1736940870973,0.05801896,96771.0,96767.0,0.0206683]
[1736940871213,0.05801896,96771.0,96768.0,0.02273513]
[1736940872433,0.05801896,96771.0,96769.0,0.206677]
[1736940872813,0.05901896,96771.0,96769.0,0.206677]
[1736940873249,0.05801896,96771.0,96769.0,0.206677]
[1736940873670,0.05901896,96771.0,96769.0,0.206677]
[1736940873831,0.05901896,96771.0,96770.0,0.04360951]